Cogmind - Beta 9.2 @@@ ROGUE MODE // 2019.11.24 @ 12:43:56 Player: Cassie Rose Result: Destroyed by Y-45 Defender with Heavy Assault Rifle Performance ------------- Evolutions (1) 500 Regions Visited (2) 400 Robots Destroyed (32) 160 Value Destroyed (692) 692 Prototype IDs (2) 40 Alien Tech Used (0) 0 Bonus (0) 0 TOTAL SCORE: 1792 Bonus ------- None Cogmind --------- Core Integrity 0/400 Matter 300/300 Energy 100/100 System Corruption 1% Temperature Cool (9) Movement Core (300) Ox5 Location -9/Materials Parts ------- > --- POWER (1) -------- (None) > --- PROPULSION (2) --- (None) > --- UTILITY (4) ------ Large Storage Unit > --- WEAPON (2) ------- (None) > --- INVENTORY (10) --- Improved Heat Sink Medium Storage Unit Large Storage Unit High-capacity Battery (400) Peak State ------------ > --- POWER ------------ Light Ion Engine > --- PROPULSION ------- Aluminum Leg Aluminum Leg > --- UTILITY ---------- Large Storage Unit Improved Terrain Scanner > --- WEAPON ----------- Heavy EM Pulse Gun Heavy EM Pulse Gun > --- INVENTORY -------- Improved Heat Sink Medium Storage Unit Large Storage Unit High-capacity Battery Assault Rifle [Rating: 10] Favorites ----------- Power Light Ion Engine Engine Light Ion Engine Propulsion Compact Wheel Leg Aluminum Leg Wheel Compact Wheel Utility Improved Terrain Scanner Device Improved Terrain Scanner Storage Small Storage Unit Weapon Small Laser Energy Gun Small Laser Ballistic Gun Light Assault Rifle Launcher Grenade Launcher Build | -11 -10 -9 ------- Run | Scr Mat Mat Slots Evolved 2 | . . 2 Power . | . . . Propulsion . | . . . Utility 2 | . . 2 Weapon . | . . . Parts Attached 24 | 8 14 2 Power 4 | 1 2 1 Engine 4 | 1 2 1 Core . | . . . Reactor . | . . . Propulsion 7 | 3 4 . Treads . | . . . Leg 2 | . 2 . Wheel 5 | 3 2 . Hover . | . . . Flight . | . . . Utility 4 | 2 2 . Device 1 | 1 . . Storage 3 | 1 2 . Processor . | . . . Hackware . | . . . Protection . | . . . Artifact . | . . . Weapon 9 | 2 6 1 Energy Gun 5 | 1 4 . Energy Cannon . | . . . Ballistic Gun 3 | 1 1 1 Ballistic Cannon . | . . . Launcher 1 | . 1 . Special Weapon . | . . . Impact Weapon . | . . . Slashing Weapon . | . . . Piercing Weapon . | . . . Special Melee Weapon . | . . . Unidentified Prototypes . | . . . Parts Lost 13 | . 5 8 Power 2 | . . 2 Propulsion 5 | . 3 2 Utility 1 | . . 1 Weapon 5 | . 2 3 Highest Loss Streak 5 | . 3 5 Average Slot Usage (%) 88 | . 98 54 Engine 12 | . 14 7 Leg 7 | . 4 16 Wheel 17 | . 22 . Device 11 | . 14 4 Storage 13 | . 14 11 Energy Gun 14 | . 15 11 Ballistic Gun 5 | . 6 3 Launcher 4 | . 5 . Naked Turns . | . . . Heaviest Build 26 | 10 26 26 Greatest Support 32 | 32 32 20 Greatest Overweight (x) 5 | . 2 5 Average Overweight (x) . | . . 1 Largest Inventory Capacity 10 | 6 10 10 Average Capacity 7 | 5 6 10 Most Carried 7 | 4 7 5 Average Carried 4 | 2 4 4 Final Capacity 10 | 6 10 10 Final Carried 5 | 4 5 4 Class Distribution -------------------- 80% | Mutant 19% | Scavenger-Mutant Dominant Class ---------------- Mutant | -10/Materials Mutant | -9/Materials Resources | -11 -10 -9 ----------- Run | Scr Mat Mat Matter Collected 603 | 289 264 50 Remotely . | . . . Salvage Created 853 | 116 593 144 Parts 60 | 12 35 13 Haulers Intercepted 1 | . 1 . Recyclers Shooed . | . . . Parts Field Recycled . | . . . Retrieved Matter . | . . . Parts Self-Destructed . | . . . Prevented . | . . . Kills | -11 -10 -9 ------- Run | Scr Mat Mat Combat Hostiles Destroyed 19 | . 14 5 Guns 10 | . 7 3 AOE 9 | . 7 2 Classes Destroyed 8 | 2 5 1 Worker 1 | . 1 . Builder 1 | . . 1 Tunneler 3 | 3 . . Hauler 1 | . 1 . Recycler 3 | 1 2 . Watcher 4 | . 2 2 Swarmer 6 | . 3 3 Grunt 13 | . 11 2 Best Kill Streak 7 | 2 7 5 Combat Bots Only 5 | . 5 3 Max Kills in Single Turn 3 | 1 3 2 Gunslinging 1 | . 1 . Exploded 3 | . 3 2 Melee . | . . . Uniques/NPCs Destroyed . | . . . Combat | -11 -10 -9 -------- Run | Scr Mat Mat Damage Taken 1579 | . 689 890 Core 565 | . 164 401 Absorbed by Shields . | . . . Core Remaining (%) 67 | 100 34 . Volleys Fired 87 | 9 56 22 Largest 2 | 2 2 2 Hottest 90 | 60 90 90 Shots Fired 138 | 18 88 32 Gun 125 | 18 75 32 Cannon . | . . . Launcher 13 | . 13 . Special . | . . . Kinetic 50 | 9 26 15 Thermal 46 | 9 37 . Explosive 13 | . 13 . Electromagnetic 29 | . 12 17 Robot Hit Streak 6 | 5 6 5 Robot Miss Streak 5 | 2 5 3 Penetration Max . | . . . Secondary Targets 1 | . 1 . Max Gunslinging Chain 1 | . 1 . Shots Hit Robots 73 | 10 45 18 Core Hits 52 | 6 35 11 Critical Hits . | . . . Critical Kills . | . . . Critical Parts Destroyed . | . . . Melee Attacks . | . . . Impact . | . . . Slashing . | . . . Piercing . | . . . Sneak Attacks . | . . . Combat Hostiles . | . . . Follow-up Attacks . | . . . Damage Inflicted 1668 | 101 1226 341 Guns 819 | 101 461 257 Cannons . | . . . Explosions 839 | . 759 80 Melee . | . . . Ramming 10 | . 6 4 Kinetic 249 | 35 98 116 Thermal 355 | 66 209 80 Explosive 759 | . 759 . Electromagnetic 295 | . 154 141 Impact . | . . . Slashing . | . . . Piercing . | . . . Highest Corruption 1 | . . 1 Average Corruption 1 | . . 1 Corruption Purged . | . . . Overload Shots . | . . . Overflow Damage 8 | . 8 . Projectiles . | . . . Explosions 8 | . 8 . Melee . | . . . Knockbacks 1 | . 1 . Impact 1 | . 1 . Kinetic . | . . . Secondary . | . . . Self-Inflicted Damage 228 | . 189 39 Shots 7 | . 6 1 Rammed 2 | . 1 1 Targets Rammed 2 | . 1 1 Kicked . | . . . Crushed . | . . . Highest Temperature 75 | 40 75 54 Average Temperature 25 | 24 27 15 Received Heat Transfer 507 | . 234 273 Siege Activations . | . . . Robots Corrupted . | . . . Combat Hostiles . | . . . Parts Fried 4 | . 2 2 Impact Corruptions . | . . . Robots Melted . | . . . Combat Hostiles . | . . . Parts Melted 2 | . 1 1 Heat Transferred 725 | 150 475 100 Parts Sabotaged . | . . . Parts Stolen . | . . . Parts Stripped . | . . . Power Chain Reactions 2 | . . 2 Missiles Intercepted . | . . . Alert | -11 -10 -9 ------- Run | Scr Mat Mat Peak Influence 315 | 20 315 124 Average Influence 134 | 9 166 75 Maximum Alert Level 1 | . 1 . Low Security (%) 78 | 100 69 100 Level 1 21 | . 30 . Level 2 . | . . . Level 3 . | . . . Level 4 . | . . . Level 5 . | . . . High Security . | . . . Max Security . | . . . Squads Dispatched 4 | . 2 2 Investigation 2 | . 1 1 Extermination . | . . . Reinforcement 2 | . 1 1 Assault . | . . . Garrison . | . . . Intercept . | . . . Construction Impeded . | . . . Haulers Reinforced . | . . . Stealth | -11 -10 -9 --------- Run | Scr Mat Mat Distress Signals 1 | . . 1 Communications Jammed . | . . . Distress Signals . | . . . Times Spotted 35 | . 26 9 Peak Tracking Total 6 | . 6 6 Tactical Retreats 2 | . 1 1 Traps | -11 -10 -9 ------- Run | Scr Mat Mat Traps Triggered 2 | . 2 . Indirectly . | . . . Trap Hack Attempts . | . . . Triggered . | . . . Disarmed . | . . . Reprogrammed . | . . . Reused . | . . . Traps Extracted . | . . . Installed . | . . . Triggered . | . . . Machines | -11 -10 -9 ---------- Run | Scr Mat Mat Machines Disabled 4 | . 4 . Max in Single Turn 2 | . 2 . Machines Sabotaged . | . . . Garrisons Compromised . | . . . Overloaded Fab Kills . | . . . Fab Network Shutdowns . | . . . Hacking | -11 -10 -9 --------- Run | Scr Mat Mat Machines Accessed 8 | . 7 1 Terminals 8 | . 7 1 Fabricators . | . . . Repair Stations . | . . . Recycling Units . | . . . Scanalyzers . | . . . Garrison Access . | . . . Total Hacks 22 | . 19 3 Successful 15 | . 14 1 Failed 7 | . 5 2 Catastrophic . | . . . Database Lockouts . | . . . Manual 20 | . 17 3 Terminals 22 | . 19 3 Fabricators . | . . . Repair Stations . | . . . Recycling Units . | . . . Scanalyzers . | . . . Garrison Access . | . . . Terminal Hacks 2 | . 2 . Prototype ID Bank 1 | . 1 . Unreport Threat 1 | . 1 . Fabricator Hacks . | . . . Repair Station Hacks . | . . . Recycling Unit Hacks . | . . . Scanalyzer . | . . . Garrison Access Hacks . | . . . Unauthorized Hacks 33 | . 29 4 Terminals 13 | . 12 1 Assimilate 6 | . 5 1 Botnet 7 | . 7 . Fabricators . | . . . Repair Stations . | . . . Recycling Units . | . . . Scanalyzers . | . . . Garrison Access . | . . . Data Cores Recovered . | . . . Used . | . . . Hacking Detections 7 | . 6 1 Full Trace Events 1 | . . 1 Feedback Events 1 | . . 1 Corruption 1 | . . 1 Feedback Blocked . | . . . Robot Schematics Acquired . | . . . Robots Built . | . . . Matter . | . . . Time . | . . . Total Robot Build Rating . | . . . Part Schematics Acquired . | . . . Parts Built . | . . . Matter . | . . . Time . | . . . Total Part Build Rating . | . . . Parts Repaired . | . . . Time . | . . . Parts Recycled . | . . . Recycled Matter . | . . . Retrieved Matter . | . . . Retrieved Components . | . . . Parts Scanalyzed . | . . . Part Schematics Acquired . | . . . Parts Damaged . | . . . Bothacking | -11 -10 -9 ------------ Run | Scr Mat Mat Used RIF Installer . | . . . Robots Hacked . | . . . Non-combat . | . . . Combat . | . . . Robot Hacks Applied . | . . . Relay Couplers Released . | . . . Robots Rewired . | . . . Allies Hacked . | . . . Hacks Repelled . | . . . Allies | -11 -10 -9 -------- Run | Scr Mat Mat Total Allies 1 | . 1 . Largest Group 1 | . 1 1 Highest-Rated Group 10 | . 10 10 Highest-Rated Ally 10 | . 10 10 Total Orders 2 | . . 2 GOTO 1 | . . 1 FOLLOW 1 | . . 1 Ally Attacks . | . . . Total Damage . | . . . Kills . | . . . Allies Corrupted . | . . . Allies Melted . | . . . Intel | -11 -10 -9 ------- Run | Scr Mat Mat Robot Analysis Total . | . . . Derelict Logs Recovered . | . . . Drone Launches . | . . . Drone Recoveries . | . . . Exploration | -11 -10 -9 ------------- Run | Scr Mat Mat Turns Passed 1380 | 119 985 276 Spaces Moved 957 | 73 770 114 Core 19 | 1 . 18 Treads . | . . . Legs 193 | . 97 96 Wheels 745 | 72 673 . Hover . | . . . Flight . | . . . Fastest Speed 50 | 50 90 150 Average Speed 108 | 97 100 173 Slowest Speed 300 | 100 180 300 Overloaded Moves . | . . . Propulsion Burnouts . | . . . Robots Hopped . | . . . Cave-ins Triggered . | . . . Exploration Rate (%) 35 | 3 94 8 Regions Visited 2 Branch Regions . Pre-discovered Areas . | . . . Known Exits Taken . | . . . Unknown Exits Taken 2 | 1 1 . Scrap Searched . | . . . Spaces Dug . | . . . Terrain Destroyed 82 | . 76 6 Melee . | . . . Projectile . | . . . AOE 82 | . 76 6 Actions | -11 -10 -9 --------- Run | Scr Mat Mat Total 1162 | 103 900 159 Wait 63 | 3 41 19 Move 955 | 72 769 114 Hop . | . . . Pick Up 24 | 11 12 1 Fast Attach . | . . . Attach 14 | 7 5 2 Detach . | . . . Swap 10 | 1 9 . Drop 7 | . 7 . Fire 87 | 9 56 22 Melee . | . . . Ram 2 | . 1 1 Kick . | . . . Crush . | . . . Escape Stasis . | . . . Rewire . | . . . Trap . | . . . Miscellaneous . | . . . Route ------- -11/Scrapyard -10/Materials (discovered 4 exits: *Mat x3 / [*Min]) -9/Materials History --------- Turn | Location | Event 16 | -11/Scrapyard | Discovered new exit (range 16) 120 | -11/Scrapyard | Entered Materials 276 | -10/Materials | Discovered new exit (range 7) 314 | -10/Materials | Build established: Mutant 390 | -10/Materials | Discovered new exit (range 14) 564 | -10/Materials | Discovered new exit (range 13) 788 | -10/Materials | Core integrity fell below 50% 969 | -10/Materials | Lost 3 parts (2n1w) 1033 | -10/Materials | Discovered new exit (range 7) 1105 | -10/Materials | Entered another Materials area 1105 | -9/Materials | Accompanied by 1 ally 1105 | -9/Materials | Evolved 2 slots: Utility x2 1264 | -9/Materials | Lost 3 parts (1p1u1w) 1338 | -9/Materials | Core integrity fell below 50% 1356 | -9/Materials | Lost 5 parts (1p2n2w) 1362 | -9/Materials | Core integrity fell below 20% 1381 | -9/Materials | Destroyed by Y-45 Defender with Heavy Assault Rifle Last Messages --------------- 01264_ U-05 Engineer lays Concrete. 01264_ Acquired 1 matter. 01265_ U-05 Engineer builds a Wall. 01268_ R-06 Scavenger collects Terrain Scan Processor. 01269_ U-05 Engineer lays Concrete. 01270_ U-05 Engineer builds a Wall. 01273_ R-06 Scavenger collects Flight Unit. 01276_ R-06 Scavenger collects Structural Scanner. 01280_ R-06 Scavenger collects Terrain Scanner. 01287_ Hvy. EM Pulse Gun destroyed. 01305_ Lgt. Ion Engine destroyed. 01313_ Aluminum Leg destroyed. 01319_ G-34 Mercenary destroyed. 01319_ Assault Rifle destroyed. 01321_ Acquired 13 matter. 01325_ Aluminum Leg destroyed. 01337_ R-06 Scavenger collects Aluminum Leg. 01346_ Slammed into R-06 Scavenger. 01364_ Technician 1a destroyed. 01379_ R-06 Scavenger collects Hacking Suite. Map ----- +----------------------------------------------------+ | ????????????????????????????????????????????? | | ????????????????????????????????????????????? | | ????????????????????????????????????????????? | | ????????????????????????????????????????????? | | ????????????????????????????????????????????? | | ????????????????????????????????????????????? | | ????????????????????????????????????????????? | | ????????????????????????????????????????????? | | ????????????????????????????????????????????? | | ????????????????????????????????????????????? | | ????????????????????????????????????????????? | | ????????????????????????????????????????????? | | ?????????????????????????###????????????????? | | ????????????????????????? ????????????????? | | ??????????????????? ????# ????????????????? | | ??????????????????? ???# #????????????????? | | ?????????????????###+#### #????????????????? | | ?????????????????# #????????????????? | | ?????????????????# #????????????????? | | #????????????????# +????????????????? | | ?????????????????# #????????????????? | | ???????????#####??# #????????????????? | | ??????????# # % /!#????????????????? | | ??????????#??? ; /r#????????????????? | | ?????????????? ? ?# /% #######??????????? | | ????#?????????????# @ ## #??????????? | | ???????#????? ????# ! #??????????? | | ????#???????? ????# #??????????? | | "????????????#????# ######## Y #??????????? | | ???????????#??? ??# ######### #####???????? | | ???????????# ?????+ ## # % **#???????? | | ########???????? ?# ## """ + **#???????? | | # #?????"????# + """ "# % !!#???????? | | # "" #??????????# ## """ T# !!#???????? | | # T" #?#????????# ## ?# !!#???????? | | + "" #???????####%!##* ?# !!#???????? | | # ############% ######### #####???????? | | # / !=%*% #???????????? | | ############################## #???????????? | | #???????????##?#####?????????####???????????? | | ??#?#?????????#?????????????????????????????? | | ???#??#???#??#????????#?????????????????????? | | ????????????????#?#?????????????????????????? | | ??##???#????????????????????????????????????? | | | | | | | | | | | | | +----------------------------------------------------+ Best States ------------- Heat Dissipation 28 Energy Generation 10 Energy Capacity 125 Matter Stores 300 Matter Capacity 300 Sight Range 16 Terrain Scan Range 16 Terrain Scan Density 10 Evasion (%) 42 Item Schematics ----------------- None Robot Schematics ------------------ None Fabricated ------------ Nothing Alien Tech Used ----------------- None Achievements -------------- None Challenges ------------ None Game ------ Seed SwordMediumChainsword Manual? 0 Play Time 00:20:21 Cumulative 38.8 hours Start 2019.11.24 @ 11:45:19 End 2019.11.24 @ 12:43:56 Sessions 1 Manual Loads 0 Difficulty Rogue Special Mode None Game No. 53 Rogue 53 Adventurer 0 Explorer 0 Win Type - Total 0 Types 0/0/0/0/0/0/0 Lore% 21 Gallery% 20 Achievement% 21 Wizard Run 0 Options --------- ASCII 0 Keyboard 0 Movement Arrows Keybinds 0 Fullscreen 1 Font 18/X11 Map View 76x50 Tactical HUD 1 Map Filters NONE Filters LOW_CONTRAST(13,24,33) Steam 1 RUN: 0e9e5f9a-4bc2-4ba2-843f-defbc0e32514